2CCN - Level 2 Cost Centre Name,,9CCN - Level 9 Cost Centre Name,9CCC - Level 9 Cost Centre Code,9AN - Level 9 Account Name,9AC - Level 9 Account Code,Date posted,Date of transaction,Merchant Name,Merchant City,Originating Account Name,Originating Account Number,MCC/SIC Code,MCC Description,Original Amount,Currency,Conversion Rate,Billed Amount,Debit Credit,Reference Number,Statement Cycle,Account Name
Gloucester City Council,23UE,MEMBERS SUPPORT,RC300,MEMBERS TRAINING,5535,2016-09-28,2016-09-26,UNIVERSITY OF BIRMINGH,ONLINE SHOP,REDACTED,471*********1715,8220,COLLEGES  UNIVERSITIES  PROFESSIONAL SCHOOLS AND JUNIOR COLLEGES,195,Pound Sterling (826),1,195,Debit,74830506270302320106487,2016-10-02,GLOUCESTER CC
Gloucester City Council,23UE,HOMELESSNESS,CH120,BOARD AND LODGING,5515,2016-09-05,2016-09-02,TRAVELODGE WEBSITE,RESERVATION,REDACTED,471*********1443,3615,TRAVELODGE,464,Pound Sterling (826),1,464,Debit,74424716246298165649060,2016-10-02,GLOUCESTER CC
Gloucester City Council,23UE,HOMELESSNESS,CH120,BOARD AND LODGING,5515,2016-09-06,2016-09-05,TRAVELODGE WEBSITE,RESERVATION,REDACTED,471*********1443,3615,TRAVELODGE,898,Pound Sterling (826),1,898,Debit,74424716249298105939305,2016-10-02,GLOUCESTER CC
Gloucester City Council,23UE,HOMELESSNESS,CH120,BOARD AND LODGING,5515,2016-09-06,2016-09-05,TRAVELODGE WEBSITE,RESERVATION,REDACTED,471*********1443,3615,TRAVELODGE,51,Pound Sterling (826),1,51,Debit,74424716249298105941871,2016-10-02,GLOUCESTER CC
Gloucester City Council,23UE,HOMELESSNESS,CH120,BOARD AND LODGING,5515,2016-09-07,2016-09-06,TRAVELODGE WEBSITE,RESERVATION,REDACTED,471*********1443,3615,TRAVELODGE,70,Pound Sterling (826),1,70,Debit,74424716250298118051821,2016-10-02,GLOUCESTER CC
Gloucester City Council,23UE,HOMELESSNESS,CH120,BOARD AND LODGING,5515,2016-09-08,2016-09-07,TRAVELODGE WEBSITE,RESERVATION,REDACTED,471*********1443,3615,TRAVELODGE,51,Pound Sterling (826),1,51,Debit,74424716251298130182777,2016-10-02,GLOUCESTER CC
Gloucester City Council,23UE,HOMELESSNESS,CH120,BOARD AND LODGING,5515,2016-09-08,2016-09-07,TRAVELODGE WEBSITE,RESERVATION,REDACTED,471*********1443,3615,TRAVELODGE,329,Pound Sterling (826),1,329,Debit,74424716251298130235138,2016-10-02,GLOUCESTER CC
Gloucester City Council,23UE,HOMELESSNESS,CH120,BOARD AND LODGING,5515,2016-09-09,2016-09-08,TRAVELODGE WEBSITE,RESERVATION,REDACTED,471*********1443,3615,TRAVELODGE,477,Pound Sterling (826),1,477,Debit,74830506252298142332420,2016-10-02,GLOUCESTER CC
Gloucester City Council,23UE,HOMELESSNESS,CH120,BOARD AND LODGING,5515,2016-09-09,2016-09-08,TRAVELODGE WEBSITE,RESERVATION,REDACTED,471*********1443,3615,TRAVELODGE,428,Pound Sterling (826),1,428,Debit,74830506252298142341561,2016-10-02,GLOUCESTER CC
Gloucester City Council,23UE,HOMELESSNESS,CH120,BOARD AND LODGING,5515,2016-09-09,2016-09-08,TRAVELODGE WEBSITE,RESERVATION,REDACTED,471*********1443,3615,TRAVELODGE,242,Pound Sterling (826),1,242,Debit,74830506252298142350273,2016-10-02,GLOUCESTER CC
Gloucester City Council,23UE,HOMELESSNESS,CH120,BOARD AND LODGING,5515,2016-09-09,2016-09-08,TRAVELODGE WEBSITE,RESERVATION,REDACTED,471*********1443,3615,TRAVELODGE,428,Pound Sterling (826),1,428,Debit,74830506252298142370305,2016-10-02,GLOUCESTER CC
Gloucester City Council,23UE,HOMELESSNESS,CH120,BOARD AND LODGING,5515,2016-09-12,2016-09-09,AMERISUITES,GLOUCESTER,REDACTED,471*********1443,3514,AMERISUITES,560,Pound Sterling (826),1,560,Debit,74579156254006961884984,2016-10-02,GLOUCESTER CC
Gloucester City Council,23UE,HOMELESSNESS,CH120,BOARD AND LODGING,5515,2016-09-12,2016-09-09,TRAVELODGE WEBSITE,RESERVATION,REDACTED,471*********1443,3615,TRAVELODGE,199,Pound Sterling (826),1,199,Debit,74830506253298154880893,2016-10-02,GLOUCESTER CC
Gloucester City Council,23UE,HOMELESSNESS,CH120,BOARD AND LODGING,5515,2016-09-12,2016-09-09,TRAVELODGE WEBSITE,RESERVATION,REDACTED,471*********1443,3615,TRAVELODGE,260,Pound Sterling (826),1,260,Debit,74830506253298154885835,2016-10-02,GLOUCESTER CC
Gloucester City Council,23UE,HOMELESSNESS,CH120,BOARD AND LODGING,5515,2016-09-12,2016-09-09,TRAVELODGE WEBSITE,RESERVATION,REDACTED,471*********1443,3615,TRAVELODGE,1016,Pound Sterling (826),1,1016,Debit,74830506253298154931563,2016-10-02,GLOUCESTER CC
Gloucester City Council,23UE,HOMELESSNESS,CH120,BOARD AND LODGING,5515,2016-09-13,2016-09-12,TRAVELODGE WEBSITE,RESERVATION,REDACTED,471*********1443,3615,TRAVELODGE,519,Pound Sterling (826),1,519,Debit,74830506256298192836482,2016-10-02,GLOUCESTER CC
Gloucester City Council,23UE,HOMELESSNESS,CH120,BOARD AND LODGING,5515,2016-09-13,2016-09-12,TRAVELODGE WEBSITE,RESERVATION,REDACTED,471*********1443,3615,TRAVELODGE,51,Pound Sterling (826),1,51,Debit,74830506256298192851093,2016-10-02,GLOUCESTER CC
Gloucester City Council,23UE,HOMELESSNESS,CH120,BOARD AND LODGING,5515,2016-09-13,2016-09-12,TRAVELODGE WEBSITE,RESERVATION,REDACTED,471*********1443,3615,TRAVELODGE,463,Pound Sterling (826),1,463,Debit,74830506256298192880548,2016-10-02,GLOUCESTER CC
Gloucester City Council,23UE,HOMELESSNESS,CH120,BOARD AND LODGING,5515,2016-09-13,2016-09-12,TRAVELODGE WEBSITE,RESERVATION,REDACTED,471*********1443,3615,TRAVELODGE,219,Pound Sterling (826),1,219,Debit,74830506256298192942157,2016-10-02,GLOUCESTER CC
Gloucester City Council,23UE,HOMELESSNESS,CH120,BOARD AND LODGING,5515,2016-09-14,2016-09-13,TRAVELODGE WEBSITE,RESERVATION,REDACTED,471*********1443,3615,TRAVELODGE,494,Pound Sterling (826),1,494,Debit,74830506257298104433484,2016-10-02,GLOUCESTER CC
Gloucester City Council,23UE,HOMELESSNESS,CH120,BOARD AND LODGING,5515,2016-09-14,2016-09-13,TRAVELODGE WEBSITE,RESERVATION,REDACTED,471*********1443,3615,TRAVELODGE,514,Pound Sterling (826),1,514,Debit,74830506257298104497141,2016-10-02,GLOUCESTER CC
Gloucester City Council,23UE,HOMELESSNESS,CH120,BOARD AND LODGING,5515,2016-09-16,2016-09-15,TRAVELODGE WEBSITE,RESERVATION,REDACTED,471*********1443,3615,TRAVELODGE,70,Pound Sterling (826),1,70,Debit,74830506259298127575004,2016-10-02,GLOUCESTER CC
Gloucester City Council,23UE,HOMELESSNESS,CH120,BOARD AND LODGING,5515,2016-09-19,2016-09-16,AMERISUITES,GLOUCESTER,REDACTED,471*********1443,3514,AMERISUITES,245,Pound Sterling (826),1,245,Debit,74579156261005761881183,2016-10-02,GLOUCESTER CC
Gloucester City Council,23UE,HOMELESSNESS,CH120,BOARD AND LODGING,5515,2016-09-20,2016-09-19,TRAVELODGE WEBSITE,RESERVATION,REDACTED,471*********1443,3615,TRAVELODGE,594,Pound Sterling (826),1,594,Debit,74830506263298177832002,2016-10-02,GLOUCESTER CC
Gloucester City Council,23UE,HOMELESSNESS,CH120,BOARD AND LODGING,5515,2016-09-20,2016-09-19,TRAVELODGE WEBSITE,RESERVATION,REDACTED,471*********1443,3615,TRAVELODGE,51,Pound Sterling (826),1,51,Debit,74830506263298177886826,2016-10-02,GLOUCESTER CC
Gloucester City Council,23UE,HOMELESSNESS,CH120,BOARD AND LODGING,5515,2016-09-21,2016-09-20,TRAVELODGE WEBSITE,RESERVATION,REDACTED,471*********1443,3615,TRAVELODGE,388,Pound Sterling (826),1,388,Debit,74830506264298189975327,2016-10-02,GLOUCESTER CC
Gloucester City Council,23UE,HOMELESSNESS,CH120,BOARD AND LODGING,5515,2016-09-21,2016-09-20,TRAVELODGE WEBSITE,RESERVATION,REDACTED,471*********1443,3615,TRAVELODGE,195,Pound Sterling (826),1,195,Debit,74830506264298189978990,2016-10-02,GLOUCESTER CC
Gloucester City Council,23UE,HOMELESSNESS,CH120,BOARD AND LODGING,5515,2016-09-21,2016-09-20,NO SHOW CHARGE,TRAVELODGE,REDACTED,471*********1443,3615,TRAVELODGE,65,Pound Sterling (826),1,65,Debit,74830506264295362145744,2016-10-02,GLOUCESTER CC
Gloucester City Council,23UE,HOMELESSNESS,CH120,BOARD AND LODGING,5515,2016-09-26,2016-09-23,TRAVELODGE WEBSITE,RESERVATION,REDACTED,471*********1443,3615,TRAVELODGE,260,Pound Sterling (826),1,260,Debit,74830506267298125929278,2016-10-02,GLOUCESTER CC
Gloucester City Council,23UE,HOMELESSNESS,CH120,BOARD AND LODGING,5515,2016-09-26,2016-09-23,TRAVELODGE WEBSITE,RESERVATION,REDACTED,471*********1443,3615,TRAVELODGE,263,Pound Sterling (826),1,263,Debit,74830506267298125942768,2016-10-02,GLOUCESTER CC
Gloucester City Council,23UE,HOMELESSNESS,CH120,BOARD AND LODGING,5515,2016-09-28,2016-09-27,TRAVELODGE WEBSITE,RESERVATION,REDACTED,471*********1443,3615,TRAVELODGE,74,Pound Sterling (826),1,74,Debit,74830506271298175923811,2016-10-02,GLOUCESTER CC
Gloucester City Council,23UE,DOCKS COMPLEX - SERVICES,RB100,CATERING PROVISIONS -FOOD,5110,2016-09-07,2016-09-06,SAINSBURYS SUPERMA,GLOUCESTER QU,REDACTED,471*********8223,5411,GROCERY STORES  SUPERMARKETS,26.6,Pound Sterling (826),1,26.6,Debit,74579156251009171854014,2016-10-02,GLOUCESTER CC
Gloucester City Council,23UE,CIVIC ADMIN AND HOSPITALITY,RC210,OTHER MINOR SUPPLIES SERVICES,5590,2016-09-20,2016-09-19,J W PLANT & CO LIMITED,LEEDS,REDACTED,471*********8223,7399,BUSINESS SERVICES NOT ELSEWHERE CLASSIFIED,59.88,Pound Sterling (826),1,59.88,Debit,74745096264010049177937,2016-10-02,GLOUCESTER CC
Gloucester City Council,23UE,DOCKS COMPLEX - SERVICES,RB100,CATERING PROVISIONS -FOOD,5110,2016-09-26,2016-09-23,SAINSBURYS SUPERMA,GLOUCESTER QU,REDACTED,471*********8223,5411,GROCERY STORES  SUPERMARKETS,9.65,Pound Sterling (826),1,9.65,Debit,74579156268001476909974,2016-10-02,GLOUCESTER CC
Gloucester City Council,23UE,CITY MUSEUM AND ART GALLERY,LM200,EXHIBITS AND COLLECTIONS,5038,2016-09-06,2016-09-05,WWW.SOUTHERNSWORDS.CO.,INTERNET,REDACTED,471*********9523,5611,MEN'S AND BOYS' CLOTHING AND ACCESSORIES STORES,124.5,Pound Sterling (826),1,124.5,Debit,74745096250010093163086,2016-10-02,GLOUCESTER CC
Gloucester City Council,23UE,CITY MUSEUM AND ART GALLERY,LM200,OPERATIONAL EQUIPMENT <5000,5012,2016-09-16,2016-09-15,ARGOS LTD,GLOUCESTER,REDACTED,471*********9523,5310,DISCOUNT STORES,21.99,Pound Sterling (826),1,21.99,Debit,74579156260009674543469,2016-10-02,GLOUCESTER CC
Gloucester City Council,23UE,CITY MUSEUM AND ART GALLERY,LM200,OPERATIONAL EQUIPMENT <5000,5012,2016-09-16,2016-09-15,ARGOS LTD,GLOUCESTER,REDACTED,471*********9523,5310,DISCOUNT STORES,45,Pound Sterling (826),1,45,Debit,74579156260009774543476,2016-10-02,GLOUCESTER CC
Gloucester City Council,23UE,CITY MUSEUM AND ART GALLERY,LM200,OPERATIONAL EQUIPMENT <5000,5012,2016-09-21,2016-09-20,Amazon UK Marketplace,800-279-6620,REDACTED,471*********9523,5999,MISCELLANEOUS AND RETAIL STORES,22.54,Pound Sterling (826),1,22.54,Debit,74313226264000736713487,2016-10-02,GLOUCESTER CC
Gloucester City Council,23UE,CITY MUSEUM AND ART GALLERY,LM200,OPERATIONAL EQUIPMENT <5000,5012,2016-09-28,2016-09-27,ARGOS LTD,GLOUCESTER,REDACTED,471*********9523,5310,DISCOUNT STORES,-45,Pound Sterling (826),1,-45,Credit,74579156272009278355589,2016-10-02,GLOUCESTER CC
Gloucester City Council,23UE,GUILDHALL BAR AND CAF�,LA210,CATERING PROVISIONS -FOOD,5110,2016-09-12,2016-09-09,ASDA SUPERSTORE,GLOUCESTER,REDACTED,471*********2470,5411,GROCERY STORES  SUPERMARKETS,26.85,Pound Sterling (826),1,26.85,Debit,74698176254050252024607,2016-10-02,GLOUCESTER CC
Gloucester City Council,23UE,BLACKFRIARS,LA609,OPERATIONAL EQUIPMENT <5000,5012,2016-09-13,2016-09-12,B&M RETAIL LTD,HS GLOUCESTER,REDACTED,471*********2470,5310,DISCOUNT STORES,10.34,Pound Sterling (826),1,10.34,Debit,74579156257006471980980,2016-10-02,GLOUCESTER CC
Gloucester City Council,23UE,GUILDHALL BAR AND CAF�,LA210,CATERING PROVISIONS -FOOD,5110,2016-09-14,2016-09-13,ASDA SUPERSTORE,GLOUCESTER,REDACTED,471*********2470,5411,GROCERY STORES  SUPERMARKETS,10.98,Pound Sterling (826),1,10.98,Debit,74698176258070192750406,2016-10-02,GLOUCESTER CC
Gloucester City Council,23UE,DOCKS COMPLEX - SERVICES,RB100,OPERATIONAL EQUIPMENT <5000,5012,2016-09-14,2016-09-13,Amazon UK Marketplace,800-279-6620,REDACTED,471*********2470,5942,BOOK STORES,72,Pound Sterling (826),1,72,Debit,74313226257000617184484,2016-10-02,GLOUCESTER CC
Gloucester City Council,23UE,GUILDHALL BAR AND CAF�,LA210,CATERING PROVISIONS -FOOD,5110,2016-09-16,2016-09-15,TESCO STORES 3074,GLOUCESTER,REDACTED,471*********2470,5411,GROCERY STORES  SUPERMARKETS,8.56,Pound Sterling (826),1,8.56,Debit,74698176260090298971736,2016-10-02,GLOUCESTER CC
Gloucester City Council,23UE,GUILDHALL BAR AND CAF�,LA210,CATERING PROVISIONS -FOOD,5110,2016-09-16,2016-09-15,ALDI,GLOUCESTER,REDACTED,471*********2470,5411,GROCERY STORES  SUPERMARKETS,11.22,Pound Sterling (826),1,11.22,Debit,74019476260495000194707,2016-10-02,GLOUCESTER CC
Gloucester City Council,23UE,GUILDHALL BAR AND CAF�,LA210,HIRE OF EQUIPMENT,5020,2016-09-19,2016-09-17,TESCO STORES 3074,GLOUCESTER,REDACTED,471*********2470,5411,GROCERY STORES  SUPERMARKETS,10,Pound Sterling (826),1,10,Debit,74698176262000705746199,2016-10-02,GLOUCESTER CC
Gloucester City Council,23UE,GUILDHALL BAR AND CAF�,LA210,CATERING PROVISIONS -FOOD,5110,2016-09-20,2016-09-19,ALDI,GLOUCESTER,REDACTED,471*********2470,5411,GROCERY STORES  SUPERMARKETS,25.3,Pound Sterling (826),1,25.3,Debit,74019476264495000936970,2016-10-02,GLOUCESTER CC
Gloucester City Council,23UE,GUILDHALL BAR AND CAF�,LA210,CATERING PROVISIONS -FOOD,5110,2016-09-21,2016-09-20,BOOKER LIMITED GLOUCESTER,GLOUCESTER,REDACTED,471*********2470,5811,CATERERS,99.91,Pound Sterling (826),1,99.91,Debit,74463666264922643305351,2016-10-02,GLOUCESTER CC
Gloucester City Council,23UE,GUILDHALL BAR AND CAF�,LA210,CATERING PROVISIONS -LIQUOR,5111,2016-09-21,2016-09-20,ASDA SUPERSTORE,GLOUCESTER,REDACTED,471*********2470,5411,GROCERY STORES  SUPERMARKETS,92,Pound Sterling (826),1,92,Debit,74698176265020118952413,2016-10-02,GLOUCESTER CC
Gloucester City Council,23UE,GUILDHALL BAR AND CAF�,LA210,CATERING PROVISIONS -FOOD,5110,2016-09-23,2016-09-22,ASDA SUPERSTORE,GLOUCESTER,REDACTED,471*********2470,5411,GROCERY STORES  SUPERMARKETS,44.9,Pound Sterling (826),1,44.9,Debit,74698176267040140754767,2016-10-02,GLOUCESTER CC
Gloucester City Council,23UE,GUILDHALL BAR AND CAF�,LA210,CATERING PROVISIONS -FOOD,5110,2016-09-29,2016-09-28,LIDL UK,GLOUCESTER,REDACTED,471*********2470,5411,GROCERY STORES  SUPERMARKETS,11.55,Pound Sterling (826),1,11.55,Debit,74698086273080080557567,2016-10-02,GLOUCESTER CC
Gloucester City Council,23UE,GUILDHALL BAR AND CAF�,LA210,CATERING PROVISIONS -FOOD,5110,2016-09-29,2016-09-28,ALDI,GLOUCESTER,REDACTED,471*********2470,5411,GROCERY STORES  SUPERMARKETS,33.83,Pound Sterling (826),1,33.83,Debit,74019476273495000167831,2016-10-02,GLOUCESTER CC
Gloucester City Council,23UE,GUILDHALL BAR AND CAF�,LA210,CATERING PROVISIONS -FOOD,5110,2016-09-29,2016-09-28,ALDI,GLOUCESTER,REDACTED,471*********2470,5411,GROCERY STORES  SUPERMARKETS,21.4,Pound Sterling (826),1,21.4,Debit,74019476273495000802726,2016-10-02,GLOUCESTER CC
Gloucester City Council,23UE,GUILDHALL BAR AND CAF�,LA210,CATERING PROVISIONS -FOOD,5110,2016-09-30,2016-09-29,BOOKER LIMITED GLOUCESTER,GLOUCESTER,REDACTED,471*********2470,5811,CATERERS,28.06,Pound Sterling (826),1,28.06,Debit,74463656273922736556738,2016-10-02,GLOUCESTER CC
Gloucester City Council,23UE,GUILDHALL BAR AND CAF�,LA210,CATERING PROVISIONS -FOOD,5110,2016-09-30,2016-09-29,ALDI,GLOUCESTER,REDACTED,471*********2470,5411,GROCERY STORES  SUPERMARKETS,12.88,Pound Sterling (826),1,12.88,Debit,74019476274495000959608,2016-10-02,GLOUCESTER CC
Gloucester City Council,23UE,MEMBERS SUPPORT,RC300,PUBLIC TRANSPORTATION,4061,2016-09-06,2016-09-05,TRAINLINE.COM LTD,LUXEMBOURG,REDACTED,471*********4841,4112,PASSENGER RAILWAYS,172.38,Pound Sterling (826),1,172.38,Debit,74998866249635925555002,2016-10-02,GLOUCESTER CC
Gloucester City Council,23UE,MEMBERS SUPPORT,RC300,PUBLIC TRANSPORTATION,4061,2016-09-06,2016-09-05,TRAINLINE.COM LTD,LUXEMBOURG,REDACTED,471*********4841,4112,PASSENGER RAILWAYS,170.03,Pound Sterling (826),1,170.03,Debit,74998866249635925553171,2016-10-02,GLOUCESTER CC
Gloucester City Council,23UE,MEMBERS SUPPORT,RC300,PUBLIC TRANSPORTATION,4061,2016-09-06,2016-09-05,TRAINLINE.COM LTD,LUXEMBOURG,REDACTED,471*********4841,4112,PASSENGER RAILWAYS,172.38,Pound Sterling (826),1,172.38,Debit,74998866249635925555036,2016-10-02,GLOUCESTER CC
Gloucester City Council,23UE,MEMBERS SUPPORT,RC300,PUBLIC TRANSPORTATION,4061,2016-09-06,2016-09-05,TRAINLINE,RAIL TICKETS,REDACTED,471*********4841,4112,PASSENGER RAILWAYS,126.79,Pound Sterling (826),1,126.79,Debit,74998866249635926852952,2016-10-02,GLOUCESTER CC
Gloucester City Council,23UE,PROCUREMENT MANAGEMENT,RP100,PUBLIC TRANSPORTATION,4061,2016-09-06,2016-09-05,TRAINLINE,RAIL TICKETS,REDACTED,471*********4841,4112,PASSENGER RAILWAYS,138.41,Pound Sterling (826),1,138.41,Debit,74998866249635926858223,2016-10-02,GLOUCESTER CC
Gloucester City Council,23UE,VEHICLES,RS140,VEHICLE LICENCES,4015,2016-09-07,2016-09-06,DVLA VEHICLE TAX,0300 1234321,REDACTED,471*********4841,9399,GOVERNMENT SERVICES NOT ELSEWHERE CLASSIFIED,237.5,Pound Sterling (826),1,237.5,Debit,74579156251007975022028,2016-10-02,GLOUCESTER CC
Gloucester City Council,23UE,HOMELESSNESS,CH120,PUBLIC TRANSPORTATION,4061,2016-09-07,2016-09-06,TRAINLINE,RAIL TICKETS,REDACTED,471*********4841,4112,PASSENGER RAILWAYS,172.38,Pound Sterling (826),1,172.38,Debit,74998866250635956290848,2016-10-02,GLOUCESTER CC
Gloucester City Council,23UE,CONTACT CENTRE,RB300,VOCATIONAL TRAINING,2970,2016-09-09,2016-09-07,AMAZON UK RETAIL AMAZON.C,AMAZON.CO.UK,REDACTED,471*********4841,5999,MISCELLANEOUS AND RETAIL STORES,28.74,Pound Sterling (826),1,28.74,Debit,74043496252635276168954,2016-10-02,GLOUCESTER CC
Gloucester City Council,23UE,MEMBERS SUPPORT,RC300,PUBLIC TRANSPORTATION,4061,2016-09-12,2016-09-09,TRAINLINE,RAIL TICKETS,REDACTED,471*********4841,4112,PASSENGER RAILWAYS,79.15,Pound Sterling (826),1,79.15,Debit,74998866253636044137527,2016-10-02,GLOUCESTER CC
Gloucester City Council,23UE,ECONOMIC DEVELOPMENT,FP300,PUBLIC TRANSPORTATION,4061,2016-09-13,2016-09-12,TRAINLINE,RAIL TICKETS,REDACTED,471*********4841,4112,PASSENGER RAILWAYS,95.47,Pound Sterling (826),1,95.47,Debit,74998866256636120718858,2016-10-02,GLOUCESTER CC
Gloucester City Council,23UE,MEMBERS SUPPORT,RC300,PUBLIC TRANSPORTATION,4061,2016-09-13,2016-09-12,TRAINLINE,RAIL TICKETS,REDACTED,471*********4841,4112,PASSENGER RAILWAYS,123.11,Pound Sterling (826),1,123.11,Debit,74998866256636120715862,2016-10-02,GLOUCESTER CC
Gloucester City Council,23UE,HOUSING STRATEGY & ENABLING,CH110,PUBLIC TRANSPORTATION,4061,2016-09-20,2016-09-19,TRAINLINE,RAIL TICKETS,REDACTED,471*********4841,4112,PASSENGER RAILWAYS,217.97,Pound Sterling (826),1,217.97,Debit,74998866263637324161565,2016-10-02,GLOUCESTER CC
Gloucester City Council,23UE,MEMBERS SUPPORT,RC300,PUBLIC TRANSPORTATION,4061,2016-09-22,2016-09-21,TRAINLINE,RAIL TICKETS,REDACTED,471*********4841,4112,PASSENGER RAILWAYS,-28.4,Pound Sterling (826),1,-28.4,Credit,74998866265637335652048,2016-10-02,GLOUCESTER CC
Gloucester City Council,23UE,CEMETERIES,HC300,VEHICLE LICENCES,4015,2016-09-27,2016-09-26,DVLA VEHICLE TAX,0300 1234321,REDACTED,471*********4841,9399,GOVERNMENT SERVICES NOT ELSEWHERE CLASSIFIED,232.5,Pound Sterling (826),1,232.5,Debit,74579156271002775576675,2016-10-02,GLOUCESTER CC
Gloucester City Council,23UE,CLEANSING SERVICES ADMIN,HI100,PUBLIC TRANSPORTATION,4061,2016-09-27,2016-09-26,TRAINLINE,RAIL TICKETS,REDACTED,471*********4841,4112,PASSENGER RAILWAYS,67.63,Pound Sterling (826),1,67.63,Debit,74998866270638495214242,2016-10-02,GLOUCESTER CC
Gloucester City Council,23UE,HISTORIC BUILDINGS,PH100,PUBLIC TRANSPORTATION,4061,2016-09-27,2016-09-26,TRAINLINE.COM LTD,LONDON,REDACTED,471*********4841,4112,PASSENGER RAILWAYS,16.78,Pound Sterling (826),1,16.78,Debit,74998866270638492608933,2016-10-02,GLOUCESTER CC
Gloucester City Council,23UE,MEMBERS SUPPORT,RC300,PUBLIC TRANSPORTATION,4061,2016-09-27,2016-09-26,TRAINLINE.COM LTD,LONDON,REDACTED,471*********4841,4112,PASSENGER RAILWAYS,40.7,Pound Sterling (826),1,40.7,Debit,74998866270638492613164,2016-10-02,GLOUCESTER CC
Gloucester City Council,23UE,MEMBERS SUPPORT,RC300,PUBLIC TRANSPORTATION,4061,2016-09-28,2016-09-27,TRAINLINE,RAIL TICKETS,REDACTED,471*********4841,4112,PASSENGER RAILWAYS,19.02,Pound Sterling (826),1,19.02,Debit,74998866271638551562426,2016-10-02,GLOUCESTER CC
Gloucester City Council,23UE,GUILDHALL EVENTS,LA200,FEES FOR SERVICES RECEIVED,5350,2016-09-05,2016-09-02,MIPERMIT PARKING-DOM,INTERNET,REDACTED,471*********6962,7523,AUTOMOBILE PARKING LOTS AND GARAGES,10,Pound Sterling (826),1,10,Debit,74745106247000104884898,2016-10-02,GLOUCESTER CC
Gloucester City Council,23UE,BLACKFRIARS,LA609,FEES FOR SERVICES RECEIVED,5350,2016-09-05,2016-09-02,TOOLSTATION LTD,GLOUCESTER,REDACTED,471*********6962,5251,HARDWARE STORES,9.42,Pound Sterling (826),1,9.42,Debit,74916776247000137992505,2016-10-02,GLOUCESTER CC
Gloucester City Council,23UE,BLACKFRIARS,LA609,FEES FOR SERVICES RECEIVED,5350,2016-09-05,2016-09-02,TOOLSTATION LTD,GLOUCESTER,REDACTED,471*********6962,5251,HARDWARE STORES,9.42,Pound Sterling (826),1,9.42,Debit,74916776247000137992521,2016-10-02,GLOUCESTER CC
Gloucester City Council,23UE,GLOUCESTER GUILDHALL,LA100,CLOTHING,5200,2016-09-06,2016-09-05,WORKWEAR EXPRESS LIMITED,DURHAM,REDACTED,471*********6962,5699,MISCELLANEOUS APPAREL AND ACCESSORY STOR,-260.32,Pound Sterling (826),1,-260.32,Credit,74463656249892503535093,2016-10-02,GLOUCESTER CC
Gloucester City Council,23UE,BLACKFRIARS,LA609,FEES FOR SERVICES RECEIVED,5350,2016-09-09,2016-09-08,B & Q 1179,GLOUCESTER,REDACTED,471*********6962,5211,LUMBER AND BUILDING MATERIALS STORES,33.65,Pound Sterling (826),1,33.65,Debit,74579156253002677902195,2016-10-02,GLOUCESTER CC
Gloucester City Council,23UE,BLACKFRIARS,LA609,CATERING PROVISIONS -FOOD,5110,2016-09-09,2016-09-08,TESCO STORES (6819),GLOUCESTER,REDACTED,471*********6962,5411,GROCERY STORES  SUPERMARKETS,5.88,Pound Sterling (826),1,5.88,Debit,74698086253040291528439,2016-10-02,GLOUCESTER CC
Gloucester City Council,23UE,BLACKFRIARS,LA609,CATERING PROVISIONS -FOOD,5110,2016-09-12,2016-09-10,MARKS&SPENCER PLC,GLOUCESTER,REDACTED,471*********6962,5411,GROCERY STORES  SUPERMARKETS,13.25,Pound Sterling (826),1,13.25,Debit,74698166255050639741501,2016-10-02,GLOUCESTER CC
Gloucester City Council,23UE,BLACKFRIARS,LA609,CATERING PROVISIONS -FOOD,5110,2016-09-12,2016-09-10,TESCO STORES (6819),GLOUCESTER,REDACTED,471*********6962,5411,GROCERY STORES  SUPERMARKETS,7.37,Pound Sterling (826),1,7.37,Debit,74698086255050710226364,2016-10-02,GLOUCESTER CC
Gloucester City Council,23UE,BLACKFRIARS,LA609,CATERING PROVISIONS -FOOD,5110,2016-09-12,2016-09-10,TESCO STORES 6819,GLOUCESTER,REDACTED,471*********6962,5411,GROCERY STORES  SUPERMARKETS,7.36,Pound Sterling (826),1,7.36,Debit,74698166255050710220615,2016-10-02,GLOUCESTER CC
Gloucester City Council,23UE,BLACKFRIARS,LA609,CATERING PROVISIONS -FOOD,5110,2016-09-12,2016-09-10,TESCO STORES (6819),GLOUCESTER,REDACTED,471*********6962,5411,GROCERY STORES  SUPERMARKETS,3.26,Pound Sterling (826),1,3.26,Debit,74698086255050710226349,2016-10-02,GLOUCESTER CC
Gloucester City Council,23UE,BLACKFRIARS,LA609,CATERING PROVISIONS -FOOD,5110,2016-09-12,2016-09-10,TESCO STORES (6819),GLOUCESTER,REDACTED,471*********6962,5411,GROCERY STORES  SUPERMARKETS,3,Pound Sterling (826),1,3,Debit,74698086255050710226380,2016-10-02,GLOUCESTER CC
Gloucester City Council,23UE,BLACKFRIARS,LA609,OPERATIONAL EQUIPMENT <5000,5012,2016-09-12,2016-09-11,CURRYS S/S,GLOUCESTER,REDACTED,471*********6962,5732,ELECTRONIC SALES,229.98,Pound Sterling (826),1,229.98,Debit,74698166256050743037845,2016-10-02,GLOUCESTER CC
Gloucester City Council,23UE,BLACKFRIARS,LA609,CATERING PROVISIONS -LIQUOR,5111,2016-09-12,2016-09-11,SAINSBURYS SUPERMA,GLOUCESTER QU,REDACTED,471*********6962,5411,GROCERY STORES  SUPERMARKETS,156.95,Pound Sterling (826),1,156.95,Debit,74579156256000476882052,2016-10-02,GLOUCESTER CC
Gloucester City Council,23UE,BLACKFRIARS,LA609,CATERING PROVISIONS -LIQUOR,5111,2016-09-12,2016-09-11,SAINSBURYS SUPERMA,GLOUCESTER QU,REDACTED,471*********6962,5411,GROCERY STORES  SUPERMARKETS,42.24,Pound Sterling (826),1,42.24,Debit,74579156256002976882343,2016-10-02,GLOUCESTER CC
Gloucester City Council,23UE,BLACKFRIARS,LA609,CATERING PROVISIONS -FOOD,5110,2016-09-12,2016-09-11,TESCO STORES (6819),GLOUCESTER,REDACTED,471*********6962,5411,GROCERY STORES  SUPERMARKETS,2,Pound Sterling (826),1,2,Debit,74698086256050972821844,2016-10-02,GLOUCESTER CC
Gloucester City Council,23UE,BLACKFRIARS,LA609,FEES FOR SERVICES RECEIVED,5350,2016-09-13,2016-09-12,VERIFONE TAXI/PRIVATE,3336661000,REDACTED,471*********6962,4121,TAXICABS/LIMOUSINES,7,Pound Sterling (826),1,7,Debit,74678586257060159775137,2016-10-02,GLOUCESTER CC
Gloucester City Council,23UE,BLACKFRIARS,LA609,FEES FOR SERVICES RECEIVED,5350,2016-09-19,2016-09-16,WILKO RETAIL LIMIT,GLOUCESTER 14,REDACTED,471*********6962,5722,HOUSEHOLD APPLIANCE STORES,7,Pound Sterling (826),1,7,Debit,74579156261009870916989,2016-10-02,GLOUCESTER CC
Gloucester City Council,23UE,BLACKFRIARS,LA609,CATERING PROVISIONS -FOOD,5110,2016-09-19,2016-09-17,TESCO STORES (6819),GLOUCESTER,REDACTED,471*********6962,5411,GROCERY STORES  SUPERMARKETS,2,Pound Sterling (826),1,2,Debit,74698086262000720845647,2016-10-02,GLOUCESTER CC
Gloucester City Council,23UE,BLACKFRIARS,LA609,FEES FOR SERVICES RECEIVED,5350,2016-09-19,2016-09-17,B&M RETAIL LTD,HS GLOUCESTER,REDACTED,471*********6962,5310,DISCOUNT STORES,5,Pound Sterling (826),1,5,Debit,74579156262005177519186,2016-10-02,GLOUCESTER CC
Gloucester City Council,23UE,BLACKFRIARS,LA609,CATERING PROVISIONS -FOOD,5110,2016-09-19,2016-09-18,TESCO STORES 6819,GLOUCESTER,REDACTED,471*********6962,5411,GROCERY STORES  SUPERMARKETS,2,Pound Sterling (826),1,2,Debit,74698166263000982341615,2016-10-02,GLOUCESTER CC
Gloucester City Council,23UE,GLOUCESTER GUILDHALL,LA100,VOCATIONAL TRAINING,2970,2016-09-20,2016-09-19,www.groupon.co.uk,www.groupon.c,REDACTED,471*********6962,7278,BUYING/SHOPPING SERVICES  CLUBS,16,Pound Sterling (826),1,16,Debit,74987506263408773891481,2016-10-02,GLOUCESTER CC
Gloucester City Council,23UE,GUILDHALL EVENTS,LA200,FEES FOR SERVICES RECEIVED,5350,2016-09-21,2016-09-20,MIPERMIT PARKING-DOM,INTERNET,REDACTED,471*********6962,7523,AUTOMOBILE PARKING LOTS AND GARAGES,20,Pound Sterling (826),1,20,Debit,74745106265020086947098,2016-10-02,GLOUCESTER CC
Gloucester City Council,23UE,GUILDHALL EVENTS,LA200,FEES FOR SERVICES RECEIVED,5350,2016-09-26,2016-09-23,MIPERMIT PARKING-DOM,INTERNET,REDACTED,471*********6962,7523,AUTOMOBILE PARKING LOTS AND GARAGES,20,Pound Sterling (826),1,20,Debit,74745106268050103156727,2016-10-02,GLOUCESTER CC
Gloucester City Council,23UE,GUILDHALL EVENTS,LA200,FEES FOR SERVICES RECEIVED,5350,2016-09-26,2016-09-24,MIPERMIT PARKING-DOM,INTERNET,REDACTED,471*********6962,7523,AUTOMOBILE PARKING LOTS AND GARAGES,10,Pound Sterling (826),1,10,Debit,74745106269050493423033,2016-10-02,GLOUCESTER CC
Gloucester City Council,23UE,GUILDHALL EVENTS,LA200,FEES FOR SERVICES RECEIVED,5350,2016-09-26,2016-09-24,MIPERMIT PARKING-DOM,INTERNET,REDACTED,471*********6962,7523,AUTOMOBILE PARKING LOTS AND GARAGES,10,Pound Sterling (826),1,10,Debit,74745106269050493423181,2016-10-02,GLOUCESTER CC
Gloucester City Council,23UE,GUILDHALL EVENTS,LA200,FEES FOR SERVICES RECEIVED,5350,2016-09-26,2016-09-24,MIPERMIT PARKING-DOM,INTERNET,REDACTED,471*********6962,7523,AUTOMOBILE PARKING LOTS AND GARAGES,10,Pound Sterling (826),1,10,Debit,74745106269050493423231,2016-10-02,GLOUCESTER CC
Gloucester City Council,23UE,GUILDHALL EVENTS,LA200,FEES FOR SERVICES RECEIVED,5350,2016-09-26,2016-09-24,MIPERMIT PARKING-DOM,INTERNET,REDACTED,471*********6962,7523,AUTOMOBILE PARKING LOTS AND GARAGES,10,Pound Sterling (826),1,10,Debit,74745106269050493423314,2016-10-02,GLOUCESTER CC
Gloucester City Council,23UE,GUILDHALL EVENTS,LA200,FEES FOR SERVICES RECEIVED,5350,2016-09-26,2016-09-24,MIPERMIT PARKING-DOM,INTERNET,REDACTED,471*********6962,7523,AUTOMOBILE PARKING LOTS AND GARAGES,10,Pound Sterling (826),1,10,Debit,74745106269050493423363,2016-10-02,GLOUCESTER CC
Gloucester City Council,23UE,GUILDHALL EVENTS,LA200,FEES FOR SERVICES RECEIVED,5350,2016-09-26,2016-09-24,MIPERMIT PARKING-DOM,INTERNET,REDACTED,471*********6962,7523,AUTOMOBILE PARKING LOTS AND GARAGES,10,Pound Sterling (826),1,10,Debit,74745106269050493423405,2016-10-02,GLOUCESTER CC
Gloucester City Council,23UE,GUILDHALL EVENTS,LA200,FEES FOR SERVICES RECEIVED,5350,2016-09-26,2016-09-24,MIPERMIT PARKING-DOM,INTERNET,REDACTED,471*********6962,7523,AUTOMOBILE PARKING LOTS AND GARAGES,10,Pound Sterling (826),1,10,Debit,74745106269050493423470,2016-10-02,GLOUCESTER CC
Gloucester City Council,23UE,GUILDHALL EVENTS,LA200,FEES FOR SERVICES RECEIVED,5350,2016-09-26,2016-09-24,MIPERMIT PARKING-DOM,INTERNET,REDACTED,471*********6962,7523,AUTOMOBILE PARKING LOTS AND GARAGES,10,Pound Sterling (826),1,10,Debit,74745106269050493423496,2016-10-02,GLOUCESTER CC
Gloucester City Council,23UE,GUILDHALL EVENTS,LA200,FEES FOR SERVICES RECEIVED,5350,2016-09-26,2016-09-24,MIPERMIT PARKING-DOM,INTERNET,REDACTED,471*********6962,7523,AUTOMOBILE PARKING LOTS AND GARAGES,10,Pound Sterling (826),1,10,Debit,74745106269050493423504,2016-10-02,GLOUCESTER CC
Gloucester City Council,23UE,GUILDHALL EVENTS,LA200,FEES FOR SERVICES RECEIVED,5350,2016-09-26,2016-09-24,MIPERMIT PARKING-DOM,INTERNET,REDACTED,471*********6962,7523,AUTOMOBILE PARKING LOTS AND GARAGES,10,Pound Sterling (826),1,10,Debit,74745106269050493423520,2016-10-02,GLOUCESTER CC
Gloucester City Council,23UE,GUILDHALL EVENTS,LA200,FEES FOR SERVICES RECEIVED,5350,2016-09-26,2016-09-24,MIPERMIT PARKING-DOM,INTERNET,REDACTED,471*********6962,7523,AUTOMOBILE PARKING LOTS AND GARAGES,10,Pound Sterling (826),1,10,Debit,74745106269050493423538,2016-10-02,GLOUCESTER CC
Gloucester City Council,23UE,GUILDHALL EVENTS,LA200,FEES FOR SERVICES RECEIVED,5350,2016-09-26,2016-09-24,MIPERMIT PARKING-DOM,INTERNET,REDACTED,471*********6962,7523,AUTOMOBILE PARKING LOTS AND GARAGES,10,Pound Sterling (826),1,10,Debit,74745106269050493423546,2016-10-02,GLOUCESTER CC
Gloucester City Council,23UE,GUILDHALL EVENTS,LA200,FEES FOR SERVICES RECEIVED,5350,2016-09-26,2016-09-24,MIPERMIT PARKING-DOM,INTERNET,REDACTED,471*********6962,7523,AUTOMOBILE PARKING LOTS AND GARAGES,10,Pound Sterling (826),1,10,Debit,74745106269050493423603,2016-10-02,GLOUCESTER CC
Gloucester City Council,23UE,GUILDHALL EVENTS,LA200,FEES FOR SERVICES RECEIVED,5350,2016-09-26,2016-09-24,MIPERMIT PARKING-DOM,INTERNET,REDACTED,471*********6962,7523,AUTOMOBILE PARKING LOTS AND GARAGES,10,Pound Sterling (826),1,10,Debit,74745106269050493423660,2016-10-02,GLOUCESTER CC
Gloucester City Council,23UE,GUILDHALL EVENTS,LA200,FEES FOR SERVICES RECEIVED,5350,2016-09-26,2016-09-24,ASDA SUPERSTORE,GLOUCESTER,REDACTED,471*********6962,5411,GROCERY STORES  SUPERMARKETS,20,Pound Sterling (826),1,20,Debit,74698176269050530656991,2016-10-02,GLOUCESTER CC
Gloucester City Council,23UE,GUILDHALL EVENTS,LA200,FEES FOR SERVICES RECEIVED,5350,2016-09-26,2016-09-25,MIPERMIT PARKING-DOM,INTERNET,REDACTED,471*********6962,7523,AUTOMOBILE PARKING LOTS AND GARAGES,10,Pound Sterling (826),1,10,Debit,74745106270050840072746,2016-10-02,GLOUCESTER CC
Gloucester City Council,23UE,GUILDHALL EVENTS,LA200,FEES FOR SERVICES RECEIVED,5350,2016-09-26,2016-09-25,MIPERMIT PARKING-DOM,INTERNET,REDACTED,471*********6962,7523,AUTOMOBILE PARKING LOTS AND GARAGES,10,Pound Sterling (826),1,10,Debit,74745106270050840072811,2016-10-02,GLOUCESTER CC
Gloucester City Council,23UE,GUILDHALL EVENTS,LA200,FEES FOR SERVICES RECEIVED,5350,2016-09-26,2016-09-25,MIPERMIT PARKING-DOM,INTERNET,REDACTED,471*********6962,7523,AUTOMOBILE PARKING LOTS AND GARAGES,10,Pound Sterling (826),1,10,Debit,74745106270050840072837,2016-10-02,GLOUCESTER CC
Gloucester City Council,23UE,GUILDHALL EVENTS,LA200,FEES FOR SERVICES RECEIVED,5350,2016-09-26,2016-09-25,MIPERMIT PARKING-DOM,INTERNET,REDACTED,471*********6962,7523,AUTOMOBILE PARKING LOTS AND GARAGES,10,Pound Sterling (826),1,10,Debit,74745106270050840072951,2016-10-02,GLOUCESTER CC
Gloucester City Council,23UE,GUILDHALL EVENTS,LA200,FEES FOR SERVICES RECEIVED,5350,2016-09-26,2016-09-25,MIPERMIT PARKING-DOM,INTERNET,REDACTED,471*********6962,7523,AUTOMOBILE PARKING LOTS AND GARAGES,10,Pound Sterling (826),1,10,Debit,74745106270050840072985,2016-10-02,GLOUCESTER CC
Gloucester City Council,23UE,GUILDHALL EVENTS,LA200,FEES FOR SERVICES RECEIVED,5350,2016-09-26,2016-09-25,MIPERMIT PARKING-DOM,INTERNET,REDACTED,471*********6962,7523,AUTOMOBILE PARKING LOTS AND GARAGES,10,Pound Sterling (826),1,10,Debit,74745106270050840073025,2016-10-02,GLOUCESTER CC
Gloucester City Council,23UE,GUILDHALL EVENTS,LA200,FEES FOR SERVICES RECEIVED,5350,2016-09-26,2016-09-25,MIPERMIT PARKING-DOM,INTERNET,REDACTED,471*********6962,7523,AUTOMOBILE PARKING LOTS AND GARAGES,10,Pound Sterling (826),1,10,Debit,74745106270050840073124,2016-10-02,GLOUCESTER CC
Gloucester City Council,23UE,GUILDHALL EVENTS,LA200,FEES FOR SERVICES RECEIVED,5350,2016-09-26,2016-09-25,MIPERMIT PARKING-DOM,INTERNET,REDACTED,471*********6962,7523,AUTOMOBILE PARKING LOTS AND GARAGES,10,Pound Sterling (826),1,10,Debit,74745106270050840073157,2016-10-02,GLOUCESTER CC
Gloucester City Council,23UE,GUILDHALL EVENTS,LA200,FEES FOR SERVICES RECEIVED,5350,2016-09-26,2016-09-25,MIPERMIT PARKING-DOM,INTERNET,REDACTED,471*********6962,7523,AUTOMOBILE PARKING LOTS AND GARAGES,10,Pound Sterling (826),1,10,Debit,74745106270050840073306,2016-10-02,GLOUCESTER CC
Gloucester City Council,23UE,GUILDHALL EVENTS,LA200,FEES FOR SERVICES RECEIVED,5350,2016-09-26,2016-09-25,MIPERMIT PARKING-DOM,INTERNET,REDACTED,471*********6962,7523,AUTOMOBILE PARKING LOTS AND GARAGES,10,Pound Sterling (826),1,10,Debit,74745106270050840073348,2016-10-02,GLOUCESTER CC
Gloucester City Council,23UE,GUILDHALL EVENTS,LA200,FEES FOR SERVICES RECEIVED,5350,2016-09-26,2016-09-25,MIPERMIT PARKING-DOM,INTERNET,REDACTED,471*********6962,7523,AUTOMOBILE PARKING LOTS AND GARAGES,10,Pound Sterling (826),1,10,Debit,74745106270050840073405,2016-10-02,GLOUCESTER CC
Gloucester City Council,23UE,GUILDHALL EVENTS,LA200,FEES FOR SERVICES RECEIVED,5350,2016-09-27,2016-09-21,IDCLIMITED,4.41893E+11,REDACTED,471*********6962,5699,MISCELLANEOUS APPAREL AND ACCESSORY STOR,144,Pound Sterling (826),1,144,Debit,74998766270638505251566,2016-10-02,GLOUCESTER CC
Gloucester City Council,23UE,GUILDHALL EVENTS,LA200,FEES FOR SERVICES RECEIVED,5350,2016-09-28,2016-09-27,Amazon UK Marketplace,800-279-6620,REDACTED,471*********6962,5942,BOOK STORES,68.96,Pound Sterling (826),1,68.96,Debit,74313226271000403933393,2016-10-02,GLOUCESTER CC
Gloucester City Council,23UE,GUILDHALL EVENTS,LA200,FEES FOR SERVICES RECEIVED,5350,2016-09-28,2016-09-27,PAYPAL *ESCAPADERSL,35314369001,REDACTED,471*********6962,5331,VARIETY STORES,87.94,Pound Sterling (826),1,87.94,Debit,74998866271638535266714,2016-10-02,GLOUCESTER CC
Gloucester City Council,23UE,GLOUCESTER GUILDHALL,LA100,FEES FOR SERVICES RECEIVED,5350,2016-09-29,2016-09-28,WH SMITH,GLOUCESTER,REDACTED,471*********6962,5994,NEWS DEALERS AND NEWSSTANDS,14.95,Pound Sterling (826),1,14.95,Debit,74697056273080112158636,2016-10-02,GLOUCESTER CC
Gloucester City Council,23UE,GLOUCESTER GUILDHALL,LA100,GENERAL REPAIR/MAINT BUILDINGS,3000,2016-09-29,2016-09-28,WILKO RETAIL LIMIT,GLOUCESTER 14,REDACTED,471*********6962,5722,HOUSEHOLD APPLIANCE STORES,24.1,Pound Sterling (826),1,24.1,Debit,74579156273004970933105,2016-10-02,GLOUCESTER CC
Gloucester City Council,23UE,GUILDHALL EVENTS,LA200,FEES FOR SERVICES RECEIVED,5350,2016-09-29,2016-09-27,PAYPAL *PARTY PACKS,35314369001,REDACTED,471*********6962,7399,BUSINESS SERVICES NOT ELSEWHERE CLASSIFIED,64.92,Pound Sterling (826),1,64.92,Debit,74998866272638565517316,2016-10-02,GLOUCESTER CC
Gloucester City Council,23UE,GUILDHALL EVENTS,LA200,FEES FOR SERVICES RECEIVED,5350,2016-09-29,2016-09-27,PAYPAL *REDSTAR,35314369001,REDACTED,471*********6962,5641,CHILDREN'S AND INFANTS' WEAR STORES,10.4,Pound Sterling (826),1,10.4,Debit,74998866272638562936378,2016-10-02,GLOUCESTER CC
Gloucester City Council,23UE,GUILDHALL EVENTS,LA200,FEES FOR SERVICES RECEIVED,5350,2016-09-29,2016-09-27,PAYPAL *AMSHOPONLIN,35314369001,REDACTED,471*********6962,5999,MISCELLANEOUS AND RETAIL STORES,29.76,Pound Sterling (826),1,29.76,Debit,74998866272638562727678,2016-10-02,GLOUCESTER CC
Gloucester City Council,23UE,GUILDHALL EVENTS,LA200,FEES FOR SERVICES RECEIVED,5350,2016-09-29,2016-09-27,PAYPAL *FANCYDRESSM,35314369001,REDACTED,471*********6962,5945,HOBBY TOY  AND GAME SHOPS,10.9,Pound Sterling (826),1,10.9,Debit,74998866272638563170506,2016-10-02,GLOUCESTER CC
Gloucester City Council,23UE,GUILDHALL EVENTS,LA200,FEES FOR SERVICES RECEIVED,5350,2016-09-29,2016-09-27,PAYPAL *GOBRANDSLIM,35314369001,REDACTED,471*********6962,5941,SPORTING GOODS STORES,12.6,Pound Sterling (826),1,12.6,Debit,74998766272638525306265,2016-10-02,GLOUCESTER CC
Gloucester City Council,23UE,GUILDHALL EVENTS,LA200,FEES FOR SERVICES RECEIVED,5350,2016-09-29,2016-09-27,PAYPAL *ILFDUK,35314369001,REDACTED,471*********6962,5945,HOBBY TOY  AND GAME SHOPS,13.98,Pound Sterling (826),1,13.98,Debit,74998766272638525306406,2016-10-02,GLOUCESTER CC
Gloucester City Council,23UE,GUILDHALL EVENTS,LA200,FEES FOR SERVICES RECEIVED,5350,2016-09-29,2016-09-27,PAYPAL *LABREEZELTD,35314369001,REDACTED,471*********6962,5621,WOMEN'S READY TO WEAR STORES,21.3,Pound Sterling (826),1,21.3,Debit,74998766272638525681725,2016-10-02,GLOUCESTER CC
Gloucester City Council,23UE,GLOUCESTER GUILDHALL,LA100,MAINTENANCE OF EQUIPMENT,5030,2016-09-30,2016-09-29,WWW.CANFORD.CO.UK,WASHINGTON,REDACTED,471*********6962,5065,ELECTRICAL PARTS AND EQUIPMENT,52.92,Pound Sterling (826),1,52.92,Debit,74085326274465000065108,2016-10-02,GLOUCESTER CC
Gloucester City Council,23UE,GLOUCESTER GUILDHALL,LA100,VOCATIONAL TRAINING,2970,2016-09-30,2016-09-29,TOURISM GROWTH LTD,1923465522,REDACTED,471*********6962,7392,MANAGEMENT  CONSULTING AND PUBLIC RELATIONS SERVICES,450,Pound Sterling (826),1,450,Debit,74648926274130100790487,2016-10-02,GLOUCESTER CC
Gloucester City Council,23UE,BUSINESS TRANSFORMATION & TECH,RT700,COMPUTER HARDWARE <5000,5420,2016-09-05,2016-09-02,KENABLE LTD,44174488675,REDACTED,471*********7309,5732,ELECTRONIC SALES,-127.25,Pound Sterling (826),1,-127.25,Credit,74998766246635245850856,2016-10-02,GLOUCESTER CC
Gloucester City Council,23UE,INHOUSE TRAINING,EH200,VOCATIONAL TRAINING,2970,2016-09-12,2016-09-09,WWW.CIPS.ORG,0845 8801188,REDACTED,471*********7309,8699,MEMBERSHIP ORGANIZATIONS NOT ELSEWHERE CLASSIFIED,123.42,Pound Sterling (826),1,123.42,Debit,74579156256008874278294,2016-10-02,GLOUCESTER CC
Gloucester City Council,23UE,BUSINESS TRANSFORMATION & TECH,RT700,COMPUTER HARDWARE <5000,5420,2016-09-20,2016-09-19,JMPRIME.CO.UK,0203 0869001,REDACTED,471*********7309,5085,INDUSTRIAL SUPPLIES NOT ELSEWHERE CLASSI,274.2,Pound Sterling (826),1,274.2,Debit,74579156264001270240992,2016-10-02,GLOUCESTER CC
Gloucester City Council,23UE,FINANCIAL SERVICES,RT200,PUBLIC TRANSPORTATION,4061,2016-09-22,2016-09-21,GWR WEBSALES ECOM,SWINDON,REDACTED,471*********7309,4112,PASSENGER RAILWAYS,38.4,Pound Sterling (826),1,38.4,Debit,74830506265160372675024,2016-10-02,GLOUCESTER CC
Gloucester City Council,23UE,CLIENT REVS & BENS CONTRACT,RT240,COURT FEES,5358,2016-09-27,2016-09-26,HMCOURTS-SERVICE.G,1452420100,REDACTED,471*********7309,9222,FINES,1899,Pound Sterling (826),1,1899,Debit,74579156271003170140141,2016-10-02,GLOUCESTER CC
